bitfinex/quotes_ETHUSD_20250720
["timestamp","ask_amount","ask_price","bid_price","bid_amount"]
[1753028959959,2.64241412,3784.5,3784.2,0.132]
[1753028960158,4.979,3784.4,3783.8,0.132]
[1753028960455,0.132,3784.4,3783.8,2.77482341]
[1753028960657,4.845,3784.3,3783.8,0.132]
[1753028960828,7.48755085,3784.3,3783.8,0.132]
[1753028961031,5.2772,3784.3,3783.8,0.132]
[1753028961238,4.845,3784.3,3783.6,0.2928]
[1753028961439,0.132,3784.1,3783.5,0.132]
[1753028961660,4.837,3784.0,3783.5,2.77502383]
[1753028961964,0.8808,3784.5,3783.8,2.64284581]
[1753028962180,7.48044891,3784.4,3783.9,0.132]
[1753028962520,2.64256646,3784.2,3783.2,0.4693]
[1753028962863,7.47664952,3784.1,3783.5,0.132]
[1753028963289,4.834,3784.1,3783.1,3.2928]
[1753028963456,2.64298278,3783.7,3783.2,0.132]
[1753028963656,4.829,3783.6,3783.2,0.132]
[1753028963859,5.2612,3783.6,3782.6,0.2928]
[1753028964077,4.826,3783.5,3783.1,2.64326746]
[1753028964254,4.826,3783.4,3783.1,2.77526746]
[1753028964456,4.826,3783.3,3783.1,2.77526746]
[1753028964881,4.826,3783.3,3783.1,0.132]
[1753028965277,0.8808,3784.5,3782.4,0.4693]
[1753028965463,0.132,3785.2,3784.3,0.2928]
[1753028965669,4.261,3785.1,3784.4,3.132]
[1753028965995,2.77441678,3784.5,3783.9,0.132]
[1753028966166,7.46843738,3784.4,3783.9,0.132]
[1753028966494,0.8715,3785.0,3783.5,3.0]
[1753028966495,0.132,3784.2,3783.6,2.7749636]
[1753028966668,4.823,3784.1,3783.6,3.132]
[1753028966990,0.4322,3784.6,3783.3,0.2928]
[1753028966991,0.132,3784.6,3784.0,3.47469122]
[1753028967191,4.822,3784.5,3784.0,3.832]
[1753028967699,2.77459034,3784.2,3784.0,0.7]
[1753028967882,2.64263701,3784.1,3783.6,3.132]
[1753028968204,7.46276834,3784.0,3783.6,0.132]
[1753028968492,0.24492956,3783.9,3783.5,0.132]
[1753028968657,0.24492956,3783.8,3783.4,0.132]
[1753028968861,0.24492956,3783.7,3783.4,0.132]
[1753028969085,5.05892956,3783.6,3783.4,2.77511614]
[1753028969425,4.814,3783.6,3783.4,2.77511614]
[1753028969581,0.4567,3784.1,3783.5,2.64305118]
[1753028969773,4.81,3784.0,3783.5,2.64303406]
[1753028969976,0.4567,3784.0,3783.4,2.77512086]
[1753028970203,4.806,3783.9,3783.5,2.64305093]
[1753028970711,0.132,3784.2,3783.4,0.132]
[1753028970911,0.132,3783.4,3783.0,2.64335223]
[1753028971084,0.4567,3784.3,3783.3,2.64319509]
[1753028971286,0.132,3783.8,3783.2,0.132]
[1753028971487,4.806,3783.7,3783.4,2.64305896]
[1753028971712,4.806,3783.7,3783.5,2.64305537]
[1753028972096,4.806,3783.7,3783.4,0.4551859]
[1753028972301,0.24480246,3783.6,3783.4,0.132]
[1753028972491,0.24480246,3783.5,3783.4,0.132]
[1753028972685,5.05080246,3783.5,3783.4,0.132]
[1753028973012,5.04280246,3783.5,3783.4,0.132]
[1753028973190,5.04280246,3783.5,3783.4,0.832]
[1753028973386,0.24480246,3783.5,3783.4,6.41513292]
[1753028973587,0.24480246,3783.5,3783.4,6.87193292]
[1753028974194,4.798,3783.9,3783.8,2.64284581]
[1753028974390,5.04281652,3783.9,3783.8,2.64284581]
[1753028974595,5.04281652,3783.9,3783.8,2.77484581]
[1753028975090,4.788,3784.7,3784.5,2.64231881]
[1753028975287,4.788,3784.7,3784.3,2.64244094]
[1753028975492,4.788,3784.7,3784.3,2.64245565]
[1753028976193,2.64187859,3785.2,3784.2,0.132]
[1753028976194,4.785,3785.4,3784.9,2.6420232]
[1753028976388,4.917,3785.4,3785.0,2.64199786]
[1753028976632,4.917,3785.4,3784.7,2.64221734]
[1753028976633,4.917,3785.4,3784.8,2.64207819]
[1753028976919,4.917,3785.4,3784.7,2.64221734]
[1753028977110,4.917,3785.4,3784.9,2.64202655]
[1753028977315,0.132,3785.4,3785.0,2.64200422]
[1753028977483,4.775,3785.3,3784.8,0.02642147]
[1753028977686,4.775,3785.3,3785.1,2.64187576]
[1753028977874,0.132,3785.7,3785.2,2.64185585]
[1753028978078,4.771,3785.6,3785.2,2.6418177]
[1753028978279,4.771,3785.6,3785.0,0.15842007]
[1753028978483,4.771,3785.6,3785.0,0.132]
[1753028978784,0.9788,3785.5,3785.0,0.132]
[1753028979320,1.0313,3785.9,3785.1,0.02641938]
[1753028979531,0.002,3787.0,3785.1,0.02641938]
[1753028979532,2.64082659,3786.7,3785.9,2.64132454]
[1753028979713,2.64089834,3786.6,3785.8,2.64139867]
[1753028979915,2.6408305,3786.7,3785.7,2.94952002]
[1753028980245,7.40076372,3786.8,3785.9,3.0]
[1753028980402,0.002,3787.0,3786.2,0.2816]
[1753028980585,0.002,3787.0,3786.2,2.92277056]
[1753028981517,0.002,3787.0,3786.2,15.21900251]
[1753028981705,0.002,3787.0,3786.2,15.09259081]
[1753028982144,0.002,3787.0,3786.2,12.45142025]
[1753028982285,0.002,3787.0,3786.9,2.64068235]
[1753028982491,1e-08,3787.0,3786.9,9.72210942]
[1753028982705,1e-08,3787.0,3786.9,14.9065026]
[1753028983238,1e-08,3787.0,3786.9,10.1525026]
[1753028983419,1e-08,3787.0,3786.9,6.09748235]
[1753028983592,1e-08,3787.0,3786.9,10.84648235]
[1753028983923,1e-08,3787.0,3786.9,10.23748018]
[1753028984110,1e-08,3787.0,3786.9,15.44328018]
[1753028984317,0.002,3788.7,3788.5,2.63956711]
[1753028984502,0.002,3788.7,3788.5,5.63956711]
[1753028984687,0.002,3788.7,3788.5,5.66596278]
[1753028985026,1e-08,3788.7,3788.6,5.63949743]
[1753028985225,1e-08,3788.7,3788.6,6.1226924]
[1753028985390,1e-08,3788.7,3788.6,6.27789743]
[1753028985888,1e-08,3788.7,3788.6,10.88291768]
[1753028986091,1e-08,3788.7,3788.6,6.27789743]
[1753028986325,1e-08,3788.7,3788.6,12.49221234]
[1753028986622,1e-08,3788.7,3788.6,13.04221234]
[1753028986919,1e-08,3788.7,3788.6,13.23825068]
[1753028987123,1e-08,3788.7,3788.6,6.27789743]
[1753028987321,1e-08,3788.7,3788.6,11.04689743]
[1753028987792,1e-08,3788.7,3788.6,11.24382595]
[1753028987987,1e-08,3788.7,3788.6,11.79382595]
[1753028988623,1e-08,3788.7,3788.6,6.27789743]
[1753028988823,1e-08,3788.7,3788.6,3.1816]
[1753028988987,1e-08,3788.7,3788.5,4.762]
[1753028989190,1e-08,3788.7,3788.6,2.63949743]
[1753028989413,1e-08,3788.7,3788.6,5.6658924]
[1753028989615,1e-08,3788.7,3788.6,7.56064351]
[1753028989814,1e-08,3788.7,3788.6,7.53424854]
[1753028990231,1e-08,3788.7,3788.6,8.08424854]
[1753028990433,1e-08,3788.7,3788.6,12.46884854]
[1753028990633,1e-08,3788.7,3788.6,6.50229743]
[1753028990804,1e-08,3788.7,3788.6,10.46411768]
[1753028991007,1e-08,3788.7,3788.6,5.95229743]
[1753028991899,1e-08,3788.7,3788.6,15.83070759]
[1753028992207,1e-08,3788.7,3788.6,31.77308259]
[1753028992526,1e-08,3788.7,3788.6,31.23774459]
[1753028992698,1e-08,3788.7,3788.6,25.09475359]
[1753028992901,1e-08,3788.7,3788.6,19.82589759]
[1753028993332,1e-08,3788.7,3788.6,15.83070759]
[1753028993536,1e-08,3788.7,3788.6,15.28070759]
[1753028993837,1e-08,3788.7,3788.6,5.82109743]
[1753028994040,1e-08,3788.7,3788.6,5.8474924]
[1753028994221,1e-08,3788.7,3788.6,7.15300351]
[1753028994537,1e-08,3788.7,3788.6,27.19335157]
[1753028994940,1e-08,3788.7,3788.6,26.60516257]
[1753028995299,1e-08,3788.7,3788.6,7.32229957]
[1753028995713,1e-08,3788.7,3788.6,11.26517957]
[1753028997738,1e-08,3788.7,3788.6,7.32229957]
[1753028998303,1e-08,3788.7,3788.6,11.68928357]
[1753028999203,1e-08,3788.7,3788.6,17.72187354]
[1753028999404,1e-08,3789.5,3789.3,0.1816]
[1753028999653,1e-08,3789.5,3789.4,5.6653296]
[1753028999819,1e-08,3789.5,3789.4,6.1131296]
[1753029000007,1e-08,3789.5,3789.4,6.0867402]
[1753029000970,1e-08,3789.5,3789.4,5.6389402]
[1753029001143,1e-08,3789.5,3789.4,7.25951098]
[1753029001344,1e-08,3789.5,3789.4,7.23312158]
[1753029001547,1e-08,3789.5,3789.4,5.6389402]
[1753029001748,1e-08,3789.5,3789.4,5.6653296]
[1753029002074,1e-08,3789.5,3789.4,5.7965296]
[1753029002479,1e-08,3789.5,3789.4,6.2443296]
[1753029002772,1e-08,3789.5,3789.4,10.4711402]
[1753029002932,1e-08,3789.5,3789.4,5.7701402]
[1753029003135,1e-08,3789.5,3789.4,5.7965296]
[1753029003643,1e-08,3789.5,3789.4,11.82404514]
[1753029003839,1e-08,3789.5,3789.4,5.7701402]
[1753029004047,1e-08,3789.5,3789.4,5.7965296]
[1753029006282,1e-08,3789.5,3789.4,10.9283296]
[1753029006447,1.4251,3791.1,3791.0,2.63782643]
[1753029006791,0.002,3790.3,3790.2,7.32038319]
[1753029006970,0.002,3790.3,3790.2,3.7654699]
[1753029007141,0.002,3790.3,3790.2,2.76958319]
[1753029007773,0.002,3790.3,3790.2,0.1312]
[1753029007974,0.4534,3790.3,3790.2,2.76958319]
[1753029008288,0.002,3790.3,3790.2,2.76958319]
[1753029009776,0.4534,3790.3,3790.2,0.1312]
[1753029009980,0.002,3790.3,3790.2,2.76958319]
[1753029010287,1.4192,3790.6,3790.5,2.63817438]
[1753029010751,1.4192,3790.6,3790.5,2.76937438]
[1753029010950,0.4514,3790.6,3790.5,2.76937438]
[1753029011541,0.1312,3791.2,3790.8,2.63792859]
[1753029011743,0.1312,3791.2,3790.9,2.63783728]
[1753029011963,0.4514,3791.1,3790.9,2.63783728]
[1753029012177,0.4514,3791.1,3791.0,2.63782643]
[1753029012566,0.1312,3791.5,3791.4,2.63754813]
[1753029012782,4.83371143,3791.9,3791.5,2.63742646]
[1753029012984,4.83371143,3791.9,3791.4,2.6375428]
[1753029013207,1.4286,3791.8,3791.5,2.6374255]
[1753029013361,0.4014,3791.7,3791.6,2.63740487]
[1753029013562,0.6,3792.0,3791.9,2.63720034]
[1753029013783,0.84573134,3792.0,3791.9,2.76840034]
[1753029013983,0.6,3792.0,3791.9,2.76840034]
[1753029014355,0.6,3792.0,3791.9,2.79477234]
[1753029014556,0.6,3792.0,3791.9,0.1312]
[1753029015690,0.6,3792.0,3791.1,4.639]
[1753029015691,1.0095,3791.9,3791.1,4.639]
[1753029015906,0.4514,3791.8,3791.3,2.76880593]
[1753029016072,0.4514,3791.8,3791.3,0.1312]
[1753029016277,1.0095,3791.9,3791.7,0.1312]
[1753029016469,0.6,3792.0,3791.7,0.1312]
[1753029016808,0.6,3792.0,3791.9,2.63720034]
[1753029017005,0.6,3792.0,3791.9,2.76840034]
[1753029017570,0.6,3792.0,3791.9,5.76840034]
[1753029017767,0.6,3792.0,3791.9,7.8246757]
[1753029018005,0.6,3792.0,3791.9,7.7983037]
[1753029020108,0.6,3792.0,3791.9,8.2461037]
[1753029020404,1e-08,3792.2,3792.1,2.63706125]
[1753029020587,1e-08,3792.2,3792.1,10.28443186]
[1753029020789,1e-08,3792.2,3792.1,6.88125038]
[1753029020994,1e-08,3792.2,3792.1,11.50225038]
[1753029021815,0.78446106,3793.0,3792.8,0.2553]
[1753029022107,0.1312,3794.1,3793.1,2.63634187]
[1753029022310,3.08757257,3793.4,3792.8,0.1312]
[1753029022479,3.97344859,3793.3,3792.8,0.1312]
[1753029022680,3.97344859,3793.3,3789.6,2.63879732]
[1753029022681,0.76015726,3793.3,3791.9,0.7]
[1753029022865,1.0284,3792.0,3790.6,0.1943984]
[1753029023070,1.0284,3791.8,3790.3,0.02638313]
[1753029023329,0.1312,3791.4,3790.8,0.1312]
[1753029023531,3.08905703,3791.3,3790.8,0.1312]
[1753029023689,0.4514,3791.2,3790.8,0.1312]
[1753029023892,0.1312,3791.4,3790.8,0.1312]
[1753029024090,0.4514,3791.1,3790.8,0.1312]
[1753029024285,0.4514,3791.0,3790.8,0.1312]
[1753029024485,0.4514,3790.9,3790.8,0.1312]
[1753029024723,0.69652621,3790.9,3790.8,0.1312]
[1753029024922,1.73972621,3790.9,3790.5,0.1312]
[1753029025122,0.69652621,3790.8,3790.5,0.1312]
[1753029025429,0.4514,3790.8,3790.5,0.1312]
[1753029025643,0.4514,3790.7,3790.5,0.1312]
[1753029026006,0.4514,3790.7,3790.5,2.76936558]
[1753029026634,0.4514,3790.7,3790.6,2.63810478]
[1753029026805,1.0432,3790.9,3790.8,2.6379656]
[1753029027005,1.0432,3790.9,3790.7,2.63802698]
[1753029027205,1.0432,3790.9,3790.8,0.1312]
[1753029027715,1.0432,3790.9,3789.9,2.66491812]
[1753029027897,0.44,3790.8,3790.5,0.1312]
[1753029028098,0.44,3790.8,3790.7,2.63803519]
[1753029028326,0.44,3790.8,3790.6,2.63804415]
[1753029028627,1.0432,3790.9,3790.8,2.6379656]
[1753029028833,0.9432,3790.9,3790.8,2.6379656]
[1753029029613,1.3832,3790.9,3790.8,2.6379656]
[1753029030396,1.3832,3790.9,3790.7,0.1312]
[1753029030601,1.3832,3790.9,3790.8,2.6379656]
[1753029030895,0.5712,3791.4,3790.7,0.1312]
[1753029031123,6.326,3792.3,3790.0,0.02638522]
[1753029031340,0.44,3791.3,3790.9,0.1312]
[1753029031508,0.44,3791.3,3790.2,3.0]
[1753029031706,0.44,3791.3,3791.1,0.1312]
[1753029031925,1.4805,3791.3,3791.1,0.1312]
[1753029032129,0.44,3791.2,3791.1,0.1312]
[1753029032444,1.0405,3791.3,3791.2,2.63768727]
[1753029033154,0.44,3791.6,3791.5,2.63747857]
[1753029033428,0.44,3791.6,3790.6,0.001]
[1753029033619,0.44,3791.6,3791.1,2.6377418]
[1753029033925,0.44,3791.6,3791.2,2.63766614]
[1753029034128,0.44,3791.5,3790.9,0.7]
[1753029034500,0.44,3791.5,3791.1,2.63770978]
[1753029034701,0.44,3791.4,3791.1,2.63770978]
[1753029034895,0.44,3791.3,3791.1,2.63770978]
[1753029035198,0.44,3791.2,3791.1,2.63770978]
[1753029036842,0.44,3791.6,3791.3,2.63758116]
[1753029036997,0.44,3791.6,3790.9,0.7]
[1753029037197,0.44,3791.6,3791.3,2.63759511]
[1753029037558,0.44,3791.5,3790.9,0.7]
[1753029037828,1.0405,3791.7,3791.3,2.63759282]
[1753029038035,1.4805,3791.7,3790.9,1.26228]
[1753029038236,1.4805,3791.7,3791.4,2.63749915]
[1753029038590,1.4805,3791.7,3790.9,1.26228]
[1753029038591,1.4805,3791.7,3791.5,2.63747178]
[1753029038827,1.0405,3791.7,3791.6,2.637409]
[1753029039002,1.4805,3791.7,3791.4,2.6375284]
[1753029039203,0.44,3791.6,3790.9,1.26228]
[1753029039426,0.44,3791.6,3790.9,0.56228]
[1753029039592,0.44,3791.6,3791.4,2.63748818]
[1753029039796,1.0405,3791.7,3791.4,2.63748818]
[1753029040035,0.44,3791.5,3791.4,2.63748818]
[1753029040541,0.44,3791.5,3790.6,2.63907814]
[1753029040832,0.44,3791.5,3790.7,0.02638035]
[1753029041027,0.44,3791.5,3790.9,2.63784382]
[1753029041230,0.9797,3791.4,3790.9,0.7]
[1753029041429,0.44,3791.3,3790.9,3.33787868]
[1753029041633,0.44,3791.3,3790.9,0.7]
[1753029041835,2.63768727,3791.2,3790.6,0.001]
[1753029042062,3.07764774,3791.3,3790.7,2.63803183]
[1753029042194,3.07764774,3791.3,3790.7,0.52772681]
[1753029042195,0.44,3791.3,3790.7,0.52772681]
[1753029042506,0.44,3791.3,3790.8,2.63792228]
[1753029042704,0.9797,3791.1,3790.6,0.001]
[1753029043134,0.44,3791.0,3790.6,0.001]
[1753029043297,0.44,3791.0,3790.8,0.1312]
[1753029043500,0.9797,3791.1,3790.6,0.001]
[1753029043501,0.44,3790.9,3790.6,0.001]
[1753029043907,0.44,3790.8,3790.6,0.001]
[1753029044328,3.74868937,3791.1,3790.6,0.001]
[1753029044531,0.44,3790.7,3790.6,0.001]
[1753029045031,0.44,3791.0,3790.7,2.63798506]
[1753029045233,0.9797,3791.1,3790.7,0.54083358]
[1753029045536,3.07783324,3791.0,3790.6,0.001]
[1753029045737,3.20903324,3791.0,3790.6,0.001]
[1753029045962,4.537,3791.5,3790.6,0.001]
[1753029045963,3.66173519,3790.7,3790.6,0.001]
[1753029046275,1.0237,3790.7,3790.6,0.001]
[1753029046567,4.10173519,3790.7,3790.6,0.001]
[1753029046734,9.31070397,3790.7,3790.6,0.001]
[1753029047135,3.66222242,3790.0,3789.9,0.001]
[1753029047332,1.0237,3790.0,3789.9,0.001]
[1753029047540,8.63622242,3790.0,3789.9,0.001]
[1753029047737,8.63622242,3790.0,3789.1,1e-08]
[1753029047738,3.66277948,3789.2,3789.1,1e-08]
[1753029047937,1.0237,3789.0,3787.8,0.001]
[1753029048138,3.66292734,3789.0,3787.8,0.001]
[1753029048343,2.63998521,3787.9,3787.8,0.001]
[1753029048576,5.5597,3787.9,3786.0,0.3578]
[1753029048857,1.0237,3787.6,3786.3,0.026411]
[1753029049027,1.0237,3788.1,3786.8,2.6407102]
[1753029049352,1.0237,3788.1,3786.1,0.19925186]
[1753029049353,0.44,3787.5,3786.1,0.19925186]
[1753029049653,0.44,3787.5,3785.5,0.19972636]
[1753029049654,2.64054289,3787.1,3785.5,0.19972636]
[1753029049852,2.64054289,3787.1,3786.1,2.64122476]
[1753029050068,0.44,3787.1,3786.3,2.64105341]
[1753029050219,1.0273,3787.8,3786.6,2.64088072]
[1753029050554,1.0273,3787.8,3786.8,2.64071841]
[1753029050555,0.44,3787.6,3786.8,2.64071841]
[1753029050850,0.44,3787.6,3786.3,0.3578]
[1753029051048,0.44,3787.6,3786.6,2.6408895]
[1753029051256,0.44,3787.6,3787.1,2.64054289]
[1753029051555,0.44,3787.6,3786.5,0.02640961]
[1753029051854,0.44,3787.5,3786.7,2.64081928]
[1753029052026,1.0273,3787.8,3786.8,2.66710566]
[1753029052227,1.0273,3787.8,3787.4,2.64027949]
[1753029052430,0.44,3787.7,3787.2,2.64041004]
[1753029052629,0.44,3787.7,3787.0,0.001]
[1753029052963,1.0273,3787.5,3787.0,0.001]
[1753029053124,2.64110081,3786.3,3786.2,0.001]
[1753029053452,1.0273,3786.2,3784.2,4.57942566]
[1753029053667,2.6413183,3786.0,3784.5,2.64229959]
[1753029053816,2.64166712,3785.5,3784.6,3.0]
[1753029054017,2.64166712,3785.5,3784.5,0.02642356]
[1753029054226,0.44,3785.6,3784.5,0.02642356]
[1753029054464,0.44,3786.1,3785.1,2.64188491]
[1753029054617,0.44,3786.1,3785.2,2.6418304]
[1753029054812,0.44,3786.1,3785.3,2.64178816]
[1753029055062,0.44,3786.1,3785.4,2.64171353]
[1753029055264,0.44,3786.1,3785.0,3.02642007]
[1753029055411,1.0273,3786.2,3785.1,0.78416139]
[1753029055620,1.0273,3786.2,3785.1,0.02641938]
[1753029055828,1.0273,3786.2,3786.0,2.64127332]
[1753029056049,1.0273,3786.2,3786.1,2.64124032]
[1753029056251,0.44,3786.5,3785.4,0.02641728]
[1753029056519,0.44,3786.5,3785.1,3.0]
[1753029056520,0.44,3786.5,3785.9,2.6413535]
[1753029056755,0.44,3786.5,3785.8,2.64144027]
[1753029056973,0.44,3786.5,3785.5,3.0]
[1753029057279,0.44,3786.5,3786.0,2.64125327]
[1753029057434,0.9647,3786.7,3786.1,2.64121898]
[1753029057628,0.9647,3786.7,3785.6,0.7546]
[1753029057820,0.9647,3786.7,3786.5,2.64095786]
[1753029058023,0.4579,3787.0,3786.7,2.64082182]
[1753029058274,0.132,3787.1,3786.9,2.64064176]
[1753029058647,0.132,3787.1,3786.5,2.7728926]
[1753029058847,0.5899,3787.1,3786.7,2.64076843]
[1753029059177,0.132,3787.1,3786.5,2.77289436]
[1753029059321,0.4579,3787.0,3785.6,0.7546]
[1753029059521,0.9647,3786.9,3785.4,4.541]
[1753029059728,0.9647,3786.3,3785.4,4.541]
[1753029059965,0.4579,3786.2,3784.9,0.3588]
[1753029060123,0.14226,3786.1,3784.9,4.541]
[1753029060321,2.64124032,3786.1,3785.3,2.64173794]
[1753029060560,0.4579,3786.2,3785.7,2.64146149]
[1753029060717,0.9647,3787.2,3785.8,0.02641449]
[1753029060937,0.10476031,3788.7,3786.8,0.9806]
[1753029061143,2.63880219,3789.6,3786.5,4.05271619]
[1753029061144,0.48587972,3789.6,3787.2,3.9806]
[1753029061341,0.4579,3789.7,3788.2,0.9806]
[1753029061673,2.63912964,3789.2,3788.3,2.63969603]
[1753029061879,0.4579,3789.3,3788.1,4.568]
[1753029062040,3.09664118,3789.7,3788.9,2.63923634]
[1753029062364,2.63825419,3790.4,3789.0,0.02639218]
[1753029062365,0.48587972,3790.3,3789.0,0.02639218]
[1753029062665,0.4579,3790.4,3789.7,2.63868788]
[1753029062824,0.4579,3790.4,3789.7,2.63867557]
[1753029063026,2.63867705,3789.8,3789.3,4.566]
[1753029063266,0.4579,3789.7,3788.9,0.9806]
[1753029063423,0.4579,3789.7,3789.2,2.63902216]
[1753029063625,2.63853902,3790.0,3789.2,2.63902216]
[1753029063826,0.55,3789.6,3787.3,5.36533162]
[1753029064166,2.63899859,3789.4,3787.5,3.0]
[1753029064376,1.4226,3789.5,3787.7,3.0]
[1753029064524,2.63901081,3789.3,3788.5,2.63949849]
[1753029064724,2.63919845,3789.1,3788.3,3.0]
[1753029065054,0.9647,3788.9,3788.5,2.63950821]
[1753029065231,0.9647,3788.9,3788.6,2.63946557]
[1753029065425,0.9647,3788.9,3788.4,2.63961361]
[1753029065620,0.9647,3788.9,3788.5,2.63955816]
[1753029065859,0.9647,3788.9,3788.6,2.63943804]
[1753029066166,0.9647,3788.9,3788.5,2.63956608]
[1753029066347,3.62764613,3789.3,3788.6,2.63949155]
[1753029066553,3.62764613,3789.3,3788.5,3.16748601]
[1753029066854,3.62764613,3789.3,3788.0,4.592]
[1753029066855,0.9886,3789.3,3788.0,4.592]
[1753029067061,0.9886,3789.3,3788.4,2.63957377]
[1753029067248,3.62761941,3789.3,3788.5,2.63955628]
[1753029067449,0.9886,3789.3,3788.6,2.63946662]
[1753029067963,2.63913812,3789.2,3788.4,2.63957757]
[1753029068169,2.63913812,3789.2,3788.5,2.63955631]
[1753029068367,0.9886,3789.3,3787.7,0.445]
[1753029068551,2.63969798,3788.4,3787.6,2.64017763]
[1753029068867,0.4579,3788.8,3788.0,2.63985044]
[1753029069159,0.4579,3788.8,3787.1,0.9806]
[1753029069160,0.4579,3788.8,3787.5,2.64021249]
[1753029069361,2.63975611,3788.3,3787.8,0.132]
[1753029069583,0.4579,3788.2,3787.8,0.132]
[1753029069861,0.1312,3788.4,3787.9,2.63996743]
[1753029070061,0.1312,3788.4,3787.8,0.132]
[1753029070771,0.9659,3789.7,3788.5,2.63951681]
[1753029071069,0.9659,3789.7,3788.9,2.63926072]
[1753029071368,0.9659,3789.7,3788.6,0.02639497]
[1753029071565,0.9659,3789.7,3789.1,2.63909812]
[1753029071727,0.9659,3789.7,3789.3,2.6390078]
[1753029071928,0.9659,3789.7,3789.6,2.63880092]
[1753029072173,1.4238,3790.2,3789.6,2.63880092]
[1753029072330,0.9659,3790.2,3789.0,0.02639218]
[1753029072535,0.9659,3790.2,3790.0,2.63846685]
[1753029073256,5.5399,3790.6,3790.0,2.63846685]
[1753029073467,4.70251143,3790.5,3789.4,2.63887629]
[1753029073652,4.70251143,3790.5,3789.5,1.29462633]
[1753029073853,4.70251143,3790.5,3790.4,2.63824398]
[1753029074255,2.64005976,3790.7,3789.7,2.66506305]
[1753029074476,3.09612893,3790.5,3789.7,2.63870696]
[1753029074769,2.63832789,3790.3,3789.6,2.63874089]
[1753029074933,0.28503843,3790.3,3789.3,1.0215]
[1753029075134,2.6384339,3790.2,3789.4,2.6389402]
[1753029075334,2.6384339,3790.2,3789.2,4.566]
[1753029075335,0.9659,3790.0,3788.8,1.0215]
[1753029075536,0.9659,3790.0,3789.4,2.63891367]
[1753029075845,0.9659,3790.0,3789.4,2.63892144]
[1753029076045,0.9659,3790.0,3788.8,1.0215]
[1753029076286,0.9659,3790.0,3788.7,2.63937921]
[1753029076287,0.9659,3790.0,3788.9,0.36608792]
[1753029076452,0.9659,3790.0,3788.7,4.559]
[1753029076650,2.63865844,3789.9,3789.1,2.63913237]
[1753029076887,1.4708,3789.8,3788.1,4.557]
[1753029077101,0.4579,3789.7,3788.2,0.02639776]
[1753029077386,2.63881627,3789.6,3788.8,2.63928896]
[1753029077585,2.63881627,3789.6,3788.7,2.63941825]
[1753029077586,0.4579,3789.7,3788.4,0.02639636]
[1753029077884,0.4579,3789.7,3788.3,1.87753978]
[1753029077885,2.63881374,3789.6,3788.9,2.63924181]
[1753029078090,0.4579,3789.7,3789.3,2.63898361]
[1753029078389,1.0129,3789.8,3789.2,2.63906143]
[1753029078546,1.0129,3789.8,3789.6,2.63878267]
[1753029078751,1.0129,3789.8,3789.7,2.63873129]
[1753029078947,1.0129,3790.4,3789.2,0.02639079]
[1753029079198,1.0129,3790.4,3789.8,2.63861007]
[1753029079356,3.65114462,3790.4,3789.7,2.63871972]
[1753029079774,1.0129,3790.4,3789.6,2.63878073]
[1753029079979,2.63839018,3790.2,3789.5,2.63884663]
[1753029080206,1.0129,3790.4,3789.3,0.26655399]
[1753029080405,1.0129,3790.4,3789.4,2.6389402]
[1753029080712,1.0129,3790.4,3789.9,2.63858592]
[1753029080914,3.65114492,3790.4,3789.8,0.1312]
[1753029081085,1.0129,3790.4,3789.8,2.76984838]
[1753029081275,1.0129,3790.4,3789.8,0.1312]
[1753029081477,1.0129,3790.4,3789.8,2.76979666]
[1753029081801,1.0129,3790.4,3789.8,0.1312]
[1753029082003,0.1312,3790.5,3789.9,2.63859204]
[1753029082228,2.76939548,3790.5,3789.9,2.63859204]
[1753029082427,0.1312,3790.5,3789.9,2.63856121]
[1753029082638,0.1312,3790.5,3789.8,0.1312]
[1753029082842,0.1312,3790.5,3789.9,2.63859204]
[1753029083324,0.1312,3790.5,3790.2,2.63832587]
[1753029083833,0.1312,3790.5,3790.3,2.63830744]
[1753029084033,4.70451143,3790.7,3790.3,2.63829451]
[1753029084404,4.70451143,3790.7,3790.2,2.76957494]
[1753029084636,4.70451143,3790.7,3790.2,0.1312]
[1753029084835,4.70451143,3790.7,3790.2,2.76956732]
[1753029085039,4.70451143,3790.7,3790.3,2.63829407]
[1753029085353,1.30617279,3790.6,3789.4,2.63892795]
[1753029085500,2.63852717,3790.0,3788.8,1.0581]
[1753029085843,3.22762717,3790.0,3789.4,0.1312]
[1753029086137,0.1312,3790.0,3789.8,2.63860728]
[1753029086311,2.63818142,3790.5,3789.8,2.6386361]
[1753029086515,0.5891,3790.4,3789.7,0.1312]
[1753029086713,1.59707289,3790.5,3789.4,2.77014012]
[1753029086714,0.1312,3790.0,3789.4,2.77014012]
[1753029086903,0.1312,3790.0,3789.4,0.1312]
[1753029087314,0.1312,3790.0,3789.4,2.77013851]
[1753029088006,1.59707289,3790.5,3789.7,2.63873009]
[1753029088007,2.63825025,3790.4,3789.7,2.63873009]
[1753029088312,0.1312,3790.2,3789.8,2.63864978]
[1753029088510,0.1312,3790.2,3789.9,2.6385755]
[1753029088805,0.1312,3790.5,3790.2,2.63834535]
[1753029089143,0.002,3790.7,3790.6,2.63810478]
[1753029089717,0.002,3790.7,3790.5,0.02638174]
[1753029089918,0.002,3790.7,3790.6,0.1312]
[1753029090140,0.002,3790.7,3790.6,2.76930478]
[1753029090924,0.002,3790.7,3790.6,3.20350478]
[1753029091342,0.002,3790.7,3790.6,2.76930478]
[1753029091526,0.002,3790.7,3790.6,2.89056094]
[1753029092117,0.002,3790.7,3790.6,3.32476094]
[1753029092318,0.002,3790.7,3790.6,2.89056094]
[1753029092560,0.1312,3791.6,3791.0,2.63779416]
[1753029092857,2.63742407,3791.6,3791.1,0.12125616]
[1753029093022,2.63742407,3791.6,3791.2,0.12125616]
[1753029093217,0.1312,3791.6,3791.3,0.12125616]
[1753029093557,0.1312,3791.6,3791.0,2.76901944]